bitfinex/quotes_SOLUSD_20250718
["timestamp","ask_amount","ask_price","bid_price","bid_amount"]
[1752865470023,11.63703344,177.19,177.15,0.72]
[1752865470410,14.1063269,177.23,177.14,33.06]
[1752865470411,10.0,177.32,177.18,11.63703344]
[1752865470732,6.2355,177.33,177.27,11.63703344]
[1752865470733,5.69984141,177.31,177.27,11.63703344]
[1752865471032,0.06,177.31,177.28,38.35703344]
[1752865471203,0.06,177.31,177.29,0.72]
[1752865471407,0.06,177.31,177.29,12.35703344]
[1752865471624,0.06,177.31,177.3,26.0]
[1752865471815,0.06,177.31,177.3,71.51703344]
[1752865472736,0.06,177.31,177.3,70.79703344]
[1752865472912,0.06,177.31,177.26,0.72]
[1752865473113,0.06,177.31,177.27,33.12]
[1752865473646,0.06,177.31,177.3,42.59371403]
[1752865473848,0.06,177.35,177.33,26.0]
[1752865474049,0.06,177.35,177.3,33.378398]
[1752865474050,0.06,177.35,177.34,49.69371403]
[1752865474228,0.06,177.42,177.34,49.69371403]
[1752865474229,0.06,177.42,177.37,26.0]
[1752865474427,0.06,177.42,177.34,49.69371403]
[1752865474428,0.06,177.42,177.38,49.69371403]
[1752865474647,0.06,177.42,177.41,42.78468397]
[1752865474833,0.06,177.42,177.41,42.59371403]
[1752865475625,0.06,177.42,177.41,48.95037487]
[1752865476038,0.06,177.42,177.41,43.31371403]
[1752865476240,0.06,177.42,177.41,65.73505884]
[1752865476542,0.06,177.42,177.41,66.29872492]
[1752865476931,0.06,177.42,177.41,98.79505884]
[1752865477838,0.06,177.42,177.41,65.73505884]
[1752865478036,0.06,177.42,177.41,98.75505884]
[1752865478448,0.06,177.46,177.45,42.78468397]
[1752865478652,0.2,177.49,177.45,92.378398]
[1752865478850,0.2,177.49,177.48,33.378398]
[1752865479045,0.2,177.49,177.48,66.378398]
[1752865479247,0.2,177.49,177.48,67.088398]
[1752865479439,0.2,177.49,177.48,72.72283568]
[1752865480240,0.2,177.49,177.48,89.31654971]
[1752865480443,0.2,177.49,177.48,72.72283568]
[1752865480860,0.2,177.49,177.48,89.31654971]
[1752865481065,0.2,177.49,177.48,72.72283568]
[1752865481463,0.2,177.49,177.48,89.31654971]
[1752865482358,0.2,177.49,177.48,23.12912165]
[1752865482561,0.2,177.49,177.48,72.64283568]
[1752865482763,0.2,177.49,177.48,89.23654971]
[1752865482946,0.2,177.49,177.48,88.73654971]
[1752865483145,0.2,177.49,177.48,89.29999347]
[1752865483362,1e-08,177.5,177.48,89.29999347]
[1752865483564,0.69,177.6,177.52,26.0]
[1752865483747,0.69,177.6,177.48,21.91912165]
[1752865483748,16.59371403,177.55,177.48,21.91912165]
[1752865484070,16.59371403,177.5,177.43,0.71]
[1752865484369,0.69,177.49,177.42,16.59371403]
[1752865484573,16.59371403,177.47,177.43,32.86]
[1752865484869,16.59371403,177.5,177.45,16.59371403]
[1752865485055,16.59371403,177.5,177.46,32.86]
[1752865485264,17.28371403,177.5,177.46,32.86]
[1752865485449,22.88031403,177.51,177.46,49.45371403]
[1752865485659,6.2866,177.51,177.47,16.59371403]
[1752865486364,15.69446518,177.55,177.47,16.59371403]
[1752865486573,6.32253351,177.54,177.46,32.86]
[1752865486763,6.32253351,177.54,177.44,6.29568084]
[1752865486764,16.59371403,177.47,177.44,26.0]
[1752865487073,16.59371403,177.47,177.42,16.59371403]
[1752865487074,0.69,177.46,177.42,16.59371403]
[1752865487282,16.59371403,177.48,177.44,32.82]
[1752865487575,19.71386729,177.54,177.47,16.59371403]
[1752865487576,6.32253351,177.54,177.47,16.59371403]
[1752865487864,16.59371403,177.53,177.48,32.82]
[1752865488040,16.59371403,177.51,177.48,32.82]
[1752865488361,0.69,177.5,177.48,32.82]
[1752865488561,5.63253351,177.54,177.48,49.41371403]
[1752865488747,6.32253351,177.54,177.49,16.59371403]
[1752865488942,17.28371403,177.53,177.46,0.66]
[1752865489147,17.28371403,177.53,177.48,16.59371403]
[1752865489344,22.91688212,177.52,177.47,49.39371403]
[1752865489561,22.91688212,177.52,177.48,16.59371403]
[1752865489562,6.32316809,177.52,177.48,16.59371403]
[1752865489763,0.69,177.52,177.48,16.59371403]
[1752865489967,6.32246458,177.55,177.49,16.59371403]
[1752865490157,6.32246458,177.55,177.47,38.43467898]
[1752865490158,22.91617861,177.55,177.5,49.37371403]
[1752865490465,11.76567722,177.56,177.52,16.59371403]
[1752865490662,5.63217722,177.56,177.52,16.59371403]
[1752865491064,17.28371403,177.58,177.53,49.33371403]
[1752865491273,25.39771403,177.61,177.53,33.4]
[1752865491586,5.63063063,177.6,177.56,16.59371403]
[1752865491762,6.32063063,177.6,177.56,16.59371403]
[1752865492175,0.69,177.6,177.57,16.59371403]
[1752865492360,12.17927129,177.61,177.57,16.59371403]
[1752865492560,12.17927129,177.61,177.56,32.76]
[1752865492561,0.69,177.63,177.59,16.59371403]
[1752865492886,16.59371403,177.6,177.53,26.0]
[1752865493067,16.59371403,177.59,177.54,49.31371403]
[1752865493267,19.70389746,177.63,177.55,16.59371403]
[1752865493464,5.6303136,177.61,177.58,16.59371403]
[1752865493855,6.3203136,177.61,177.58,16.59371403]
[1752865494055,16.59371403,177.59,177.53,26.0]
[1752865494280,16.59371403,177.57,177.53,58.7]
[1752865494455,17.28371403,177.56,177.5,16.59371403]
[1752865494658,17.28371403,177.56,177.51,32.7]
[1752865495055,16.59371403,177.56,177.51,49.29371403]
[1752865495278,16.59371403,177.54,177.5,26.0]
[1752865495470,5.63285078,177.53,177.51,32.68]
[1752865495785,6.32257918,177.54,177.51,32.68]
[1752865496077,5.63257918,177.54,177.51,49.27371403]
[1752865496261,5.63257918,177.54,177.51,32.68]
[1752865496579,5.63229106,177.55,177.51,49.27371403]
[1752865496784,5.63229106,177.55,177.51,32.68]
[1752865496785,22.22600509,177.55,177.51,32.68]
[1752865496969,22.91600509,177.55,177.51,32.68]
[1752865497170,6.32229106,177.55,177.51,49.27371403]
[1752865497371,5.63229106,177.55,177.51,49.27371403]
[1752865497571,5.63126478,177.58,177.54,16.59371403]
[1752865497768,6.32101266,177.59,177.56,16.59371403]
[1752865497979,5.63101266,177.59,177.56,16.59371403]
[1752865498288,0.69,177.58,177.54,49.25371403]
[1752865498460,5.63070468,177.6,177.56,16.59371403]
[1752865498784,5.63070468,177.6,177.54,32.66]
[1752865498785,0.69,177.64,177.59,16.59371403]
[1752865498982,5.62942272,177.64,177.6,49.23371403]
[1752865499368,5.62905782,177.65,177.6,32.64]
[1752865499558,0.69,177.64,177.6,49.23371403]
[1752865499763,0.69,177.63,177.58,32.64]
[1752865499969,19.70167251,177.65,177.58,32.64]
[1752865500186,19.70167251,177.65,177.54,26.66]
[1752865500187,16.59371403,177.61,177.54,26.0]
[1752865500429,16.59371403,177.55,177.48,17.44468397]
[1752865500693,16.59371403,177.53,177.46,16.81468397]
[1752865500984,0.69,177.55,177.48,16.59371403]
[1752865501176,16.59371403,177.53,177.48,49.23371403]
[1752865501377,16.59371403,177.51,177.46,0.03]
[1752865501579,16.59371403,177.48,177.46,0.03]
[1752865501776,0.69,177.47,177.46,0.03]
[1752865502186,17.28371403,177.47,177.46,0.03]
[1752865502570,0.69,177.47,177.46,0.03]
[1752865502960,17.28371403,177.47,177.46,0.03]
[1752865503490,22.91846919,177.47,177.46,0.03]
[1752865503662,29.50236919,177.47,177.46,0.03]
[1752865504117,29.50236919,177.47,177.46,1e-08]
[1752865504276,16.78468397,177.46,177.42,0.03]
[1752865504609,0.69,177.46,177.42,0.03]
[1752865504768,16.59371403,177.43,177.42,0.03]
[1752865505086,0.69,177.45,177.42,0.03]
[1752865505282,17.28371403,177.45,177.42,0.03]
[1752865505587,22.2297395,177.43,177.42,0.03]
[1752865506088,22.9197395,177.43,177.42,0.03]
[1752865506293,37.00980318,177.43,177.38,0.03]
[1752865506599,16.59371403,177.39,177.38,0.03]
[1752865506798,16.59371403,177.4,177.38,0.03]
[1752865506992,5.63602547,177.43,177.38,16.62371403]
[1752865507171,22.9197395,177.43,177.38,16.62371403]
[1752865507563,16.59371403,177.4,177.38,0.03]
[1752865507800,16.59371403,177.39,177.38,0.03]
[1752865507997,17.28371403,177.39,177.38,0.03]
[1752865509472,22.92101038,177.39,177.38,0.03]
[1752865510901,5.63729635,177.39,177.38,0.03]
[1752865511084,5.63700704,177.4,177.38,0.03]
[1752865511574,0.69,177.42,177.38,16.62371403]
[1752865511774,5.63637657,177.42,177.39,16.59371403]
[1752865512303,22.229698,177.44,177.39,16.59371403]
[1752865512690,22.919698,177.44,177.39,16.59371403]
[1752865512892,22.919698,177.44,177.38,0.03]
[1752865512893,16.59371403,177.4,177.38,0.03]
[1752865513086,0.69,177.43,177.38,0.03]
[1752865513287,0.69,177.39,177.38,0.03]
[1752865513507,22.23097371,177.4,177.38,0.03]
[1752865513883,5.63725968,177.4,177.38,0.03]
[1752865514079,5.63638177,177.42,177.38,0.03]
[1752865514299,16.59371403,177.44,177.39,16.59371403]
[1752865514503,0.69,177.46,177.38,0.69]
[1752865514504,5.63539025,177.45,177.41,16.59371403]
[1752865515124,5.63539025,177.45,177.4,33.0]
[1752865515293,22.91910428,177.45,177.4,48.93371403]
[1752865515508,5.63634314,177.42,177.38,0.03]
[1752865515808,16.59371403,177.44,177.39,48.91371403]
[1752865515995,6.33577842,177.44,177.39,48.91371403]
[1752865516185,16.59371403,177.42,177.38,0.03]
[1752865516379,16.59371403,177.41,177.38,0.03]
[1752865516603,5.63577842,177.44,177.38,0.03]
[1752865516780,16.59371403,177.39,177.38,0.03]
[1752865516981,16.59371403,177.4,177.38,0.03]
[1752865517204,16.59371403,177.41,177.38,0.03]
[1752865517591,22.23012611,177.42,177.38,0.03]
[1752865517790,16.59371403,177.43,177.38,16.62371403]
[1752865517990,16.59371403,177.41,177.38,0.03]
[1752865518506,17.29371403,177.41,177.38,0.03]
[1752865519309,0.7,177.41,177.38,0.03]
[1752865519507,16.59371403,177.4,177.38,0.03]
[1752865519701,22.93057808,177.41,177.38,0.03]
[1752865519901,16.59371403,177.4,177.38,0.03]
[1752865520280,17.29371403,177.39,177.38,0.03]
[1752865520809,17.29371403,177.39,177.28,0.1]
[1752865520810,8.1821,177.38,177.28,0.1]
[1752865521115,16.59371403,177.33,177.28,0.1]
[1752865521711,6.33920374,177.33,177.28,0.1]
[1752865521893,22.93291777,177.33,177.28,0.1]
[1752865522097,6.33920374,177.33,177.28,0.1]
[1752865522286,22.93291777,177.33,177.28,0.1]
[1752865523089,37.03092713,177.33,177.28,0.1]
[1752865523294,16.59371403,177.29,177.28,0.1]
[1752865523506,89.7,177.31,177.28,0.1]
[1752865523708,17.29371403,177.29,177.28,0.1]
[1752865523883,16.59371403,177.29,177.28,0.1]
[1752865524310,95.33988938,177.31,177.28,0.1]
[1752865524608,111.93360341,177.31,177.28,0.1]
[1752865525183,95.33988938,177.31,177.28,0.1]
[1752865525405,5.63956469,177.32,177.29,16.59371403]
[1752865525611,5.63920374,177.33,177.29,16.59371403]
[1752865525917,5.63920374,177.33,177.28,32.87]
[1752865526085,5.63920374,177.33,177.28,0.1]
[1752865526086,16.59371403,177.31,177.28,0.1]
[1752865526288,16.59371403,177.29,177.28,0.1]
[1752865526899,17.29371403,177.29,177.28,0.1]
[1752865527913,22.93419008,177.29,177.28,0.1]
[1752865528815,5.64047605,177.29,177.28,0.1]
[1752865529021,5.64021927,177.3,177.28,0.1]
[1752865529616,16.59371403,177.29,177.28,0.1]
[1752865529789,22.23419008,177.29,177.28,0.1]
[1752865529990,22.93419008,177.29,177.28,0.1]
[1752865530521,37.03538022,177.29,177.2,0.1]
[1752865530822,16.59371403,177.26,177.2,32.06]
[1752865531001,16.59371403,177.26,177.21,16.59371403]
[1752865531320,16.59371403,177.25,177.2,48.65371403]
[1752865531791,16.59371403,177.25,177.21,0.67]
[1752865531792,22.23568889,177.25,177.21,0.67]
[1752865531998,5.64197486,177.25,177.21,17.26371403]
[1752865532294,5.64197486,177.25,177.21,16.59371403]
[1752865532495,16.59371403,177.24,177.2,32.06]
[1752865532722,17.29371403,177.24,177.2,32.06]
[1752865532921,16.59371403,177.21,177.2,0.1]
[1752865533292,17.29371403,177.21,177.2,0.1]
[1752865533807,23.43673643,177.21,177.2,0.1]
[1752865534324,0.5,177.21,177.2,0.1]
[1752865534633,22.23617235,177.23,177.2,0.1]
[1752865534921,16.59371403,177.22,177.2,0.1]
[1752865535432,17.29371403,177.22,177.2,0.1]
[1752865535619,16.59371403,177.23,177.2,0.1]
[1752865536008,22.23617784,177.23,177.2,0.1]
[1752865536217,5.64246381,177.23,177.2,0.1]
[1752865537107,16.59371403,177.21,177.2,0.1]
[1752865537519,17.29371403,177.21,177.2,0.1]
[1752865537720,23.34691403,177.21,177.2,1e-08]
[1752865537917,28.98993643,177.21,177.2,1e-08]
[1752865538608,22.93673643,177.21,177.2,1e-08]
[1752865542919,6.3430224,177.21,177.2,1e-08]
[1752865543110,22.93673643,177.21,177.2,1e-08]
[1752865543319,22.23673643,177.21,177.2,1e-08]
[1752865543829,22.93673643,177.21,177.2,1e-08]
[1752865544010,6.3430224,177.21,177.2,1e-08]
[1752865546216,5.6430224,177.21,177.2,1e-08]
[1752865546533,16.59371403,177.21,177.2,1e-08]
[1752865546906,5.6423856,177.23,177.2,1e-08]
[1752865546907,16.59371403,177.22,177.2,1e-08]
[1752865547332,16.59371403,177.21,177.2,1e-08]
[1752865548420,16.59371403,177.23,177.2,1e-08]
[1752865548624,5.64206725,177.24,177.2,16.59371404]
[1752865548804,5.64111242,177.27,177.22,16.59371403]
[1752865549002,5.64111242,177.27,177.2,1e-08]
[1752865549003,5.64111242,177.27,177.23,17.29371403]
[1752865549430,22.23482645,177.27,177.21,0.7]
[1752865549709,16.59371403,177.26,177.21,17.29371403]
[1752865550045,6.35111242,177.27,177.2,1e-08]
[1752865550046,16.59371403,177.24,177.2,1e-08]
[1752865550212,20.45389348,177.27,177.2,1e-08]
[1752865550407,5.6423856,177.23,177.2,1e-08]
[1752865550608,5.6423856,177.23,177.2,17.29371404]
[1752865551342,5.6423856,177.23,177.2,16.59371404]
[1752865551517,22.23609963,177.23,177.2,1e-08]
[1752865551717,5.6423856,177.23,177.2,1e-08]
[1752865552050,16.59371403,177.22,177.2,1e-08]
[1752865552535,5.6423856,177.23,177.2,1e-08]
[1752865552856,5.6423856,177.23,177.2,17.29371404]
[1752865553130,5.6423856,177.23,177.2,1e-08]
[1752865553335,5.64174894,177.25,177.21,16.59371403]
[1752865553533,5.64174894,177.25,177.22,17.29371403]
[1752865553737,5.64174894,177.25,177.23,0.7]
[1752865554613,14.10254416,177.28,177.24,16.59371403]
[1752865554944,5.64111242,177.27,177.24,16.59371403]
[1752865555108,22.94482645,177.27,177.22,16.59371403]
[1752865555310,19.74389348,177.27,177.2,1e-08]
[1752865555509,16.59371403,177.21,177.2,1e-08]
[1752865556009,17.30371403,177.21,177.2,1e-08]
[1752865556653,22.94673643,177.21,177.2,1e-08]
[1752865558449,6.3530224,177.21,177.2,1e-08]
[1752865558757,22.94673643,177.21,177.2,1e-08]
[1752865560363,82.05408841,177.21,177.12,0.03]
[1752865560561,16.59371403,177.13,177.12,0.03]
[1752865560730,16.59371403,177.13,177.07,42.62371403]
[1752865560731,22.23928507,177.13,177.07,0.03]
[1752865560932,0.71,177.12,177.07,0.03]
[1752865561157,16.59371403,177.09,177.07,0.03]
[1752865561338,16.59371403,177.08,177.07,0.03]
[1752865561529,17.30371403,177.08,177.07,0.03]
[1752865561734,89.7,177.12,177.07,0.03]
[1752865562055,89.7,177.12,177.09,16.59371403]
[1752865562241,16.59371403,177.11,177.07,0.03]
[1752865562438,16.59371403,177.08,177.07,0.03]
[1752865562651,22.24087915,177.08,177.07,0.03]
[1752865564079,37.06879195,177.08,176.99,0.7]
[1752865564378,16.59371403,177.04,176.99,17.29371403]
[1752865564752,5.64876009,177.03,176.99,17.29371403]
[1752865565051,5.64876009,177.03,177.0,17.29371403]
[1752865565256,5.64812199,177.05,177.01,0.7]
[1752865565457,22.24183602,177.05,177.01,0.7]
[1752865565656,22.24087915,177.08,177.04,16.59371403]
[1752865565852,5.64716512,177.08,177.04,16.59371403]
[1752865566047,5.64716512,177.08,177.04,17.29371403]
[1752865566463,22.24087915,177.08,177.04,17.29371403]
[1752865566654,22.24087915,177.08,177.04,0.7]
[1752865566849,16.59371403,177.06,177.0,26.7]
[1752865567053,16.59371403,177.05,177.0,26.7]
[1752865567259,16.59371403,177.07,177.03,16.59371403]
[1752865567449,16.59371403,177.07,177.03,17.29371403]
[1752865567651,36.35879195,177.08,177.03,17.29371403]
[1752865567960,5.64716512,177.08,177.04,16.59371403]
[1752865568276,22.24087915,177.08,177.03,16.59371403]
[1752865568779,5.64716512,177.08,177.03,0.7]
[1752865569075,16.59371403,177.07,177.03,17.29371403]
[1752865569260,5.64716512,177.08,177.04,17.29371403]
[1752865569465,5.64691452,177.09,177.04,16.59371403]
[1752865569773,14.11553066,177.11,177.0,31.64964931]
[1752865569774,5.64620857,177.11,177.07,16.59371403]
[1752865570178,16.59371403,177.14,177.09,16.59371403]
[1752865570467,16.59371403,177.13,177.09,0.7]
[1752865570646,16.59371403,177.13,177.09,17.29371403]
[1752865570847,5.64588979,177.12,177.09,17.29371403]
[1752865571381,5.64588979,177.12,177.09,0.7]
[1752865571679,5.64588979,177.12,177.1,16.59371403]
[1752865571880,5.64588979,177.12,177.09,17.29371403]
[1752865572176,5.64588979,177.12,177.08,16.59371403]
[1752865572555,5.64588979,177.12,177.09,16.59371403]
[1752865572757,5.64652738,177.1,177.06,16.59371403]
[1752865573072,5.64652738,177.1,177.07,16.59371403]
[1752865573286,22.23995902,177.11,177.05,0.7]
[1752865573457,22.23995902,177.11,177.03,32.3499]
[1752865573458,16.59371403,177.09,177.04,16.59371403]
[1752865573846,19.76176641,177.11,177.03,73.87371403]
[1752865574052,16.59371403,177.09,177.05,16.59371403]
[1752865574248,5.64525234,177.14,177.08,16.59371403]
[1752865574471,5.64525234,177.14,177.11,16.59371403]
[1752865574661,5.64525234,177.14,177.1,16.59371403]
[1752865574858,22.23896637,177.14,177.08,0.7]
[1752865575080,5.64525234,177.14,177.09,16.59371403]
[1752865575257,5.64525234,177.14,177.11,16.59371403]
[1752865575463,0.71,177.18,177.12,0.7]
[1752865575778,19.75503752,177.17,177.09,31.97]
[1752865575969,19.75503752,177.17,177.11,16.59371403]
[1752865576176,16.59371403,177.16,177.11,16.59371403]
[1752865576355,16.59371403,177.15,177.1,16.59371403]
[1752865576559,16.59371403,177.15,177.1,17.30371403]
[1752865576772,16.59371403,177.16,177.11,16.59371403]
[1752865576963,5.64493367,177.15,177.11,16.59371403]
[1752865577576,5.64493367,177.15,177.12,16.59371403]
[1752865578285,16.59371403,177.13,177.0,16.78468397]
[1752865578494,0.66,177.12,177.06,0.03]
[1752865578669,0.66,177.12,177.1,0.03]
[1752865579003,22.8999226,177.11,177.1,0.03]
[1752865580786,6.30620857,177.11,177.1,0.03]
[1752865580974,22.8999226,177.11,177.1,0.03]
[1752865581171,37.01544402,177.11,177.01,0.71]
[1752865581476,16.59371403,177.07,177.01,0.71]
[1752865581676,16.59371403,177.05,177.0,16.59371403]
[1752865581889,16.59371403,177.03,176.99,0.71]
[1752865582080,16.59371403,177.03,176.96,0.71]
[1752865582262,16.59371403,177.01,176.95,1.5548]
[1752865582585,16.59371403,177.0,176.95,16.59371403]
[1752865582784,16.59371403,176.99,176.94,48.03371403]
[1752865582982,5.65035597,176.98,176.94,48.74371403]
[1752865583162,5.65035597,176.98,176.94,31.44]
[1752865583687,22.90407,176.98,176.94,31.44]
[1752865583895,16.59371403,176.97,176.92,16.59371403]
[1752865584057,6.31035597,176.98,176.92,16.59371403]
[1752865584397,0.66,176.97,176.88,0.71]
[1752865584580,16.59371403,176.96,176.92,16.59371403]
[1752865584888,16.59371403,176.96,176.88,0.71]
[1752865584889,5.65131393,176.95,176.88,0.71]
[1752865585088,22.24502796,176.95,176.88,0.71]
[1752865585298,16.59371403,176.93,176.88,16.59371403]
[1752865585587,17.25371403,176.93,176.88,16.59371403]
[1752865585786,17.25371403,176.93,176.87,31.44]
[1752865585993,17.25371403,176.93,176.88,16.59371403]
[1752865586164,16.59371403,176.92,176.88,16.59371403]
[1752865586367,17.25371403,176.91,176.86,16.62371403]
[1752865586568,16.59371403,176.9,176.86,0.03]
[1752865586801,19.77959875,176.95,176.86,0.03]
[1752865586802,16.59371403,176.89,176.86,0.03]
[1752865587095,5.65347002,176.89,176.86,0.03]
[1752865587297,22.24718405,176.89,176.86,0.03]
[1752865587470,0.66,176.88,176.86,0.03]
[1752865587664,16.59371403,176.87,176.86,0.03]
[1752865587862,17.25371403,176.87,176.86,0.03]
[1752865588792,0.66,176.87,176.77,0.71]
[1752865588976,16.59371403,176.81,176.76,16.59371403]
[1752865589176,16.59371403,176.8,176.76,0.71]
[1752865589364,16.59371403,176.8,176.75,31.44]
[1752865589571,0.66,176.84,176.75,48.74371403]
[1752865589765,16.59371403,176.83,176.78,16.59371403]
[1752865589973,16.59371403,176.89,176.82,16.59371403]
[1752865590222,5.65227221,176.92,176.88,16.59371403]
[1752865590576,5.65227221,176.92,176.86,0.71]
[1752865590577,5.65163332,176.94,176.89,16.59371403]
[1752865590794,22.90534735,176.94,176.86,0.71]
[1752865590997,22.90534735,176.94,176.86,6.3639454]
[1752865591183,0.66,176.94,176.89,16.59371403]
[1752865591513,0.66,176.93,176.85,16.78468397]
[1752865591666,16.59371403,176.9,176.83,7.22274084]
[1752865591864,16.59371403,176.91,176.84,32.37]
[1752865592068,16.59371403,176.9,176.84,31.66]
[1752865592288,0.66,176.89,176.84,31.66]
[1752865592492,17.25371403,176.88,176.83,32.06]
[1752865592695,0.66,176.88,176.83,32.06]
[1752865592886,16.59371403,176.85,176.79,18.35238397]
[1752865593088,26.0,176.93,176.8,32.91]
[1752865593089,0.66,176.9,176.8,32.91]
[1752865593270,20.44518936,176.9,176.8,48.79371403]
[1752865593472,16.59371403,176.86,176.81,16.59371403]
[1752865593796,0.66,176.85,176.78,32.2]
[1752865594012,16.59371403,176.84,176.78,32.2]
[1752865594214,0.66,176.85,176.78,16.59371403]
[1752865594393,16.59371403,176.84,176.78,49.65371403]
[1752865594600,16.59371403,176.81,176.77,33.06]
[1752865594910,0.66,176.8,176.77,33.06]
[1752865595114,16.59371403,176.81,176.77,33.06]
[1752865595617,5.65450947,176.85,176.8,16.59371403]
[1752865595813,16.59371403,176.86,176.81,16.59371403]
[1752865595993,6.384,176.87,176.81,16.59371403]
[1752865596205,28.6316449,176.87,176.82,16.59371403]
[1752865596398,21.30393806,176.92,176.85,16.59371403]
[1752865596600,6.5131,176.92,176.83,33.34]
[1752865596818,22.24534735,176.94,176.85,0.71]
[1752865597113,5.65163332,176.94,176.9,16.59371403]
[1752865597330,22.24534735,176.94,176.9,16.59371403]
[1752865597537,5.65137265,176.95,176.9,0.71]
[1752865597831,5.65137265,176.95,176.91,16.59371403]
[1752865597983,0.66,176.98,176.93,16.59371403]
[1752865598189,1.5161,176.99,176.94,16.59371403]
[1752865598190,16.59371403,176.99,176.94,16.59371403]
[1752865598384,5.64971751,177.0,176.95,16.59371403]
[1752865598588,5.64971751,177.0,176.93,34.37]
[1752865598990,33.66827917,177.01,176.97,16.59371403]
[1752865598991,5.64944622,177.01,176.97,16.59371403]
[1752865599427,12.16221326,177.02,176.99,16.59371403]
[1752865599719,5.64911326,177.02,177.01,16.59371403]
[1752865599921,5.64911326,177.02,176.97,34.47]
[1752865600234,5.64879479,177.03,177.0,16.59371403]
[1752865600522,5.64879479,177.03,177.01,16.59371403]
[1752865600721,5.647803,177.06,177.02,16.59371403]
[1752865600898,12.82060595,177.07,177.03,16.59371403]
[1752865601325,6.5131,177.07,177.03,16.59371403]
[1752865601528,22.90029178,177.1,177.05,16.59371403]
[1752865601728,6.1732,177.12,177.08,16.59371403]
[1752865602115,5.64590054,177.12,177.02,33.76]
[1752865602425,17.25371403,177.11,177.03,0.71]
[1752865602729,5.64590054,177.12,177.03,0.71]
[1752865602927,22.2392898,177.13,177.08,16.59371403]
[1752865603308,5.64557577,177.13,177.08,16.59371403]
[1752865603830,5.64557577,177.13,177.09,16.09371403]
[1752865604637,57.18691403,177.17,177.12,16.59371403]
[1752865604801,16.59371403,177.15,177.09,0.71]
[1752865605006,20.41615262,177.16,177.07,33.8]
[1752865605213,0.66,177.15,177.08,16.59371403]
[1752865605447,16.59371403,177.13,177.08,16.59371403]
[1752865605734,16.59371403,177.14,177.09,16.59371403]
[1752865605924,16.59371403,177.14,177.05,6.35799631]
[1752865606125,0.7,177.14,177.09,16.59371403]
[1752865606302,17.29371403,177.14,177.09,16.59371403]
[1752865606509,0.7,177.14,177.1,16.59371403]
[1752865606811,6.34554365,177.14,177.1,16.59371403]
[1752865607207,6.34554365,177.14,177.07,0.7]
[1752865607406,0.7,177.13,177.1,16.59371403]
[1752865607606,5.64554365,177.14,177.1,16.59371403]
[1752865607841,5.64554365,177.14,177.11,16.59371403]
[1752865608204,5.64554365,177.14,177.07,0.7]
[1752865608407,5.64554365,177.14,177.1,16.59371403]
[1752865608649,5.64588979,177.12,177.06,33.8]
[1752865608814,5.64588979,177.12,177.09,16.59371403]
[1752865609136,5.64560008,177.13,177.1,16.59371403]
[1752865609633,5.64464871,177.16,177.12,16.59371403]
[1752865610329,22.93836274,177.16,177.09,0.7]
[1752865610629,16.59371403,177.14,177.07,26.0]
[1752865610938,16.59371403,177.14,177.07,59.7]
[1752865611131,16.59371403,177.14,177.09,16.59371403]
[1752865611519,0.7,177.13,177.07,59.7]
[1752865611818,17.29371403,177.13,177.09,16.59371403]
[1752865612332,0.7,177.13,177.09,16.59371403]
[1752865613033,16.59371403,177.11,177.05,0.7]
[1752865613334,16.59371403,177.11,177.06,50.19371403]
[1752865613640,16.59371403,177.11,177.06,33.6]
[1752865613816,17.29371403,177.1,177.02,49.73768397]
[1752865614008,17.29371403,177.1,177.05,16.59371403]
[1752865614215,17.29371403,177.1,177.06,16.59371403]
[1752865614435,0.7,177.1,177.03,33.54]
[1752865614634,16.59371403,177.08,177.02,0.7]
[1752865614812,16.59371403,177.08,177.03,50.15371403]
[1752865615136,0.7,177.1,177.05,16.59371403]
[1752865615137,5.64684623,177.09,177.05,16.59371403]
[1752865615319,22.24056026,177.09,177.05,16.59371403]
[1752865615518,22.24056026,177.09,177.04,16.59371403]
[1752865615723,6.34684623,177.09,177.03,33.56]
[1752865616022,16.59371403,177.08,177.04,16.59371403]